[Event "Late-Titled-Tuesday-Blitz-October-10-2023"]
[Site "Chess.com"]
[Date "2023.10.10"]
[Round "2"]
[White "Nick12772"]
[Black "temus_galaktionov"]
[Result "0-1"]
[WhiteElo "2406"]
[BlackElo "2879"]
[TimeControl "180+1"]
[EndTime "14:14:09 PDT"]
[Termination "temus_galaktionov won by resignation"]

1. Nf3 {[%clk 0:03:00.9]} 1... c6 {[%clk 0:03:00.9]} 2. g3 {[%clk 0:03:00.4]}
2... g6 {[%clk 0:03:01.8]} 3. Bg2 {[%clk 0:03:00.9]} 3... Bg7 {[%clk 0:03:02.7]}
4. O-O {[%clk 0:03:01.6]} 4... d6 {[%clk 0:03:03.1]} 5. c4 {[%clk 0:03:01.9]}
5... Nf6 {[%clk 0:03:04]} 6. Nc3 {[%clk 0:03:02.4]} 6... O-O {[%clk 0:03:04.7]}
7. d3 {[%clk 0:03:03]} 7... Nbd7 {[%clk 0:03:05.1]} 8. Rb1 {[%clk 0:03:03.4]}
8... a5 {[%clk 0:02:57.7]} 9. a3 {[%clk 0:03:02.9]} 9... e5 {[%clk 0:02:57.7]}
10. b4 {[%clk 0:03:02.8]} 10... axb4 {[%clk 0:02:58.6]} 11. axb4 {[%clk
0:03:03.6]} 11... Re8 {[%clk 0:02:58.5]} 12. e4 {[%clk 0:03:03.5]} 12... h6
{[%clk 0:02:58.2]} 13. b5 {[%clk 0:03:03.9]} 13... c5 {[%clk 0:02:58.5]} 14. Ne1
{[%clk 0:03:03.4]} 14... Nf8 {[%clk 0:02:57]} 15. Nc2 {[%clk 0:03:03.5]} 15...
Ne6 {[%clk 0:02:57.3]} 16. Ne3 {[%clk 0:03:00.2]} 16... Nd4 {[%clk 0:02:57.6]}
17. Ned5 {[%clk 0:02:59.8]} 17... Be6 {[%clk 0:02:57.8]} 18. Be3 {[%clk
0:02:55.2]} 18... Nxd5 {[%clk 0:02:57.4]} 19. Nxd5 {[%clk 0:02:55.2]} 19... Bxd5
{[%clk 0:02:56]} 20. exd5 {[%clk 0:02:51]} 20... Ra3 {[%clk 0:02:55.8]} 21. Bxd4
{[%clk 0:02:48.8]} 21... exd4 {[%clk 0:02:54.5]} 22. Rb3 {[%clk 0:02:41.2]}
22... Qa5 {[%clk 0:02:54.1]} 23. Qc2 {[%clk 0:02:35]} 23... h5 {[%clk
0:02:45.3]} 24. h4 {[%clk 0:02:31.8]} 24... Ra2 {[%clk 0:02:40.4]} 25. Rb2
{[%clk 0:02:30]} 25... Ra3 {[%clk 0:02:39.9]} 26. Rb3 {[%clk 0:02:29.2]} 26...
Bh6 {[%clk 0:02:26.7]} 27. Be4 {[%clk 0:02:21.5]} 27... f5 {[%clk 0:02:25.9]}
28. Bf3 {[%clk 0:02:12]} 28... Qa4 {[%clk 0:02:20.8]} 29. Rfb1 {[%clk
0:02:04.1]} 29... Ra2 {[%clk 0:02:20.6]} 30. R1b2 {[%clk 0:01:57.4]} 30... Re1+
{[%clk 0:02:20.3]} 31. Kg2 {[%clk 0:01:57.4]} 31... Raa1 {[%clk 0:02:20.7]} 32.
b6 {[%clk 0:01:29.7]} 32... Rh1 {[%clk 0:02:13.2]} 33. Be2 {[%clk 0:01:24.4]}
33... Rhc1 {[%clk 0:02:13]} 0-1

[Event "Late-Titled-Tuesday-Blitz-October-10-2023"]
[Site "Chess.com"]
[Date "2023.10.10"]
[Round "2"]
[White "greekplayer1"]
[Black "IPAchess"]
[Result "1-0"]
[WhiteElo "2672"]
[BlackElo "2374"]
[TimeControl "180+1"]
[EndTime "14:14:09 PDT"]
[Termination "greekplayer1 won by resignation"]

1. e4 {[%clk 0:03:00.9]} 1... e5 {[%clk 0:03:00.1]} 2. Nc3 {[%clk 0:02:52.8]}
2... Nf6 {[%clk 0:02:59.4]} 3. d4 {[%clk 0:02:49.6]} 3... exd4 {[%clk
0:02:35.2]} 4. Qxd4 {[%clk 0:02:20.9]} 4... Nc6 {[%clk 0:02:35]} 5. Qd3 {[%clk
0:02:21.4]} 5... Bc5 {[%clk 0:02:34.7]} 6. Bf4 {[%clk 0:02:20.1]} 6... d6 {[%clk
0:02:34.9]} 7. Qd2 {[%clk 0:02:16.3]} 7... Be6 {[%clk 0:02:35.2]} 8. f3 {[%clk
0:02:14.6]} 8... O-O {[%clk 0:02:31.8]} 9. O-O-O {[%clk 0:02:14.1]} 9... Bb4
{[%clk 0:02:31.3]} 10. a3 {[%clk 0:02:13.5]} 10... Ba5 {[%clk 0:02:31.3]} 11. g4
{[%clk 0:02:12.9]} 11... Nd7 {[%clk 0:02:23.5]} 12. h4 {[%clk 0:02:11]} 12... a6
{[%clk 0:02:20.6]} 13. h5 {[%clk 0:02:07.6]} 13... b5 {[%clk 0:02:20]} 14. Nge2
{[%clk 0:02:01.1]} 14... b4 {[%clk 0:02:19.2]} 15. axb4 {[%clk 0:02:01.8]} 15...
Bxb4 {[%clk 0:02:19.5]} 16. h6 {[%clk 0:02:01.3]} 16... g6 {[%clk 0:02:19.1]}
17. Nd4 {[%clk 0:02:01.8]} 17... Nde5 {[%clk 0:02:07.6]} 18. Bg5 {[%clk
0:01:50.4]} 18... Bxc3 {[%clk 0:02:03]} 19. bxc3 {[%clk 0:01:45.9]} 19... Qb8
{[%clk 0:01:52.1]} 20. Qf4 {[%clk 0:01:38.7]} 20... Nd7 {[%clk 0:01:33.1]} 21.
Nxc6 {[%clk 0:01:28.5]} 21... Qb6 {[%clk 0:01:31.2]} 22. Ne7+ {[%clk 0:01:29.4]}
1-0

[Event "Late-Titled-Tuesday-Blitz-October-10-2023"]
[Site "Chess.com"]
[Date "2023.10.10"]
[Round "2"]
[White "pinguino120"]
[Black "DvaHrasta"]
[Result "0-1"]
[WhiteElo "2215"]
[BlackElo "2475"]
[TimeControl "180+1"]
[EndTime "14:14:11 PDT"]
[Termination "DvaHrasta won by resignation"]

1. e4 {[%clk 0:03:00.9]} 1... c6 {[%clk 0:02:59.3]} 2. d4 {[%clk 0:02:59.7]}
2... d5 {[%clk 0:02:59.2]} 3. e5 {[%clk 0:02:56.9]} 3... c5 {[%clk 0:02:59.3]}
4. c4 {[%clk 0:02:56.6]} 4... Nc6 {[%clk 0:02:52]} 5. Nf3 {[%clk 0:02:40.1]}
5... Bg4 {[%clk 0:02:48.7]} 6. cxd5 {[%clk 0:02:33.3]} 6... Bxf3 {[%clk
0:02:47.6]} 7. Qxf3 {[%clk 0:02:14.6]} 7... Nxd4 {[%clk 0:02:46.1]} 8. Qe4
{[%clk 0:02:09.3]} 8... f5 {[%clk 0:02:44.1]} 9. Qd3 {[%clk 0:01:21]} 9... Qxd5
{[%clk 0:02:43.3]} 10. Nc3 {[%clk 0:01:13]} 10... Qxe5+ {[%clk 0:02:38.3]} 11.
Be3 {[%clk 0:01:13.2]} 11... O-O-O {[%clk 0:02:32.9]} 12. f4 {[%clk 0:00:36.9]}
12... Qe6 {[%clk 0:02:19.6]} 0-1

[Event "Late-Titled-Tuesday-Blitz-October-10-2023"]
[Site "Chess.com"]
[Date "2023.10.10"]
[Round "2"]
[White "blueryder"]
[Black "Cheer_Down"]
[Result "0-1"]
[WhiteElo "2179"]
[BlackElo "2453"]
[TimeControl "180+1"]
[EndTime "14:14:15 PDT"]
[Termination "Cheer_Down won by resignation"]

1. e4 {[%clk 0:03:00.9]} 1... c5 {[%clk 0:02:59.8]} 2. Nc3 {[%clk 0:03:00.2]}
2... d6 {[%clk 0:02:59.7]} 3. f4 {[%clk 0:03:00.1]} 3... g6 {[%clk 0:02:58.5]}
4. Nf3 {[%clk 0:03:00.1]} 4... Bg7 {[%clk 0:02:56.3]} 5. Bb5+ {[%clk 0:02:59.7]}
5... Bd7 {[%clk 0:02:55.7]} 6. Bc4 {[%clk 0:02:59.5]} 6... Nc6 {[%clk
0:02:54.8]} 7. d3 {[%clk 0:02:59.4]} 7... e6 {[%clk 0:02:53.8]} 8. Bb3 {[%clk
0:02:58.2]} 8... Na5 {[%clk 0:02:45.9]} 9. O-O {[%clk 0:02:55.2]} 9... Nxb3
{[%clk 0:02:45.4]} 10. axb3 {[%clk 0:02:55.5]} 10... Ne7 {[%clk 0:02:45.9]} 11.
Qe1 {[%clk 0:02:54.6]} 11... O-O {[%clk 0:02:43.3]} 12. Ne2 {[%clk 0:02:52.5]}
12... f5 {[%clk 0:02:38.2]} 13. c3 {[%clk 0:02:39.3]} 13... a5 {[%clk
0:02:16.2]} 14. e5 {[%clk 0:02:34.1]} 14... Nc6 {[%clk 0:02:05]} 15. d4 {[%clk
0:02:32.9]} 15... cxd4 {[%clk 0:01:57.3]} 16. Nexd4 {[%clk 0:02:23]} 16... dxe5
{[%clk 0:01:54.1]} 17. fxe5 {[%clk 0:02:17.2]} 17... h6 {[%clk 0:01:37.8]} 18.
Qg3 {[%clk 0:02:13.5]} 18... g5 {[%clk 0:01:36.9]} 19. h3 {[%clk 0:01:44.6]}
19... f4 {[%clk 0:01:32.8]} 20. Qg4 {[%clk 0:01:41]} 20... Nxe5 {[%clk
0:01:30.6]} 21. Nxe5 {[%clk 0:01:37.6]} 21... Bxe5 {[%clk 0:01:30.9]} 22. Nxe6
{[%clk 0:01:34.8]} 22... Qb6+ {[%clk 0:01:28.1]} 23. Nd4 {[%clk 0:01:33.1]}
23... Bxg4 {[%clk 0:01:27.9]} 0-1

[Event "Late-Titled-Tuesday-Blitz-October-10-2023"]
[Site "Chess.com"]
[Date "2023.10.10"]
[Round "2"]
[White "tolimachess"]
[Black "ElCoachRene"]
[Result "1-0"]
[WhiteElo "2453"]
[BlackElo "2171"]
[TimeControl "180+1"]
[EndTime "14:14:45 PDT"]
[Termination "tolimachess won by resignation"]

1. e4 {[%clk 0:03:00.9]} 1... Nc6 {[%clk 0:02:59.8]} 2. Nc3 {[%clk 0:02:57.2]}
2... Nf6 {[%clk 0:02:58.2]} 3. g3 {[%clk 0:02:55.3]} 3... e5 {[%clk 0:02:51.9]}
4. Bg2 {[%clk 0:02:52.8]} 4... Bb4 {[%clk 0:02:51.2]} 5. Nge2 {[%clk 0:02:49.8]}
5... O-O {[%clk 0:02:50.4]} 6. O-O {[%clk 0:02:46]} 6... a6 {[%clk 0:02:45.6]}
7. d3 {[%clk 0:02:45.9]} 7... Be7 {[%clk 0:02:40.8]} 8. h3 {[%clk 0:02:44.6]}
8... d6 {[%clk 0:02:40.5]} 9. Be3 {[%clk 0:02:45.1]} 9... Ne8 {[%clk 0:02:37.1]}
10. f4 {[%clk 0:02:44.6]} 10... f5 {[%clk 0:02:36.4]} 11. exf5 {[%clk
0:02:44.9]} 11... Bxf5 {[%clk 0:02:35.6]} 12. g4 {[%clk 0:02:45]} 12... Bd7
{[%clk 0:02:34.4]} 13. f5 {[%clk 0:02:45.2]} 13... Bg5 {[%clk 0:02:31.2]} 14.
Qd2 {[%clk 0:02:45]} 14... Bxe3+ {[%clk 0:02:28.4]} 15. Qxe3 {[%clk 0:02:45.9]}
15... Qh4 {[%clk 0:02:28.2]} 16. Qg3 {[%clk 0:02:40.6]} 16... Qxg3 {[%clk
0:02:24.4]} 17. Nxg3 {[%clk 0:02:41.5]} 17... Nd4 {[%clk 0:02:21.7]} 18. Rf2
{[%clk 0:02:37.2]} 18... Bc6 {[%clk 0:02:20.8]} 19. Nd5 {[%clk 0:02:36.7]} 19...
Kf7 {[%clk 0:02:09.6]} 20. c3 {[%clk 0:02:35.9]} 20... Nb5 {[%clk 0:02:04.5]}
21. a4 {[%clk 0:02:35.5]} 21... Na7 {[%clk 0:02:03.2]} 22. Ne4 {[%clk
0:02:27.8]} 22... h6 {[%clk 0:02:02.1]} 23. Nd2 {[%clk 0:02:20.1]} 23... Rc8
{[%clk 0:01:52.9]} 24. b3 {[%clk 0:02:18.5]} 24... Kg8 {[%clk 0:01:47.7]} 25. c4
{[%clk 0:02:16.1]} 25... Kh7 {[%clk 0:01:39.4]} 26. a5 {[%clk 0:02:10.8]} 26...
Bd7 {[%clk 0:01:29.1]} 27. Ne7 {[%clk 0:02:04.9]} 27... Rb8 {[%clk 0:01:26.4]}
28. Ng6 {[%clk 0:02:04.9]} 28... Rf7 {[%clk 0:01:23.9]} 29. Bd5 {[%clk
0:02:04.7]} 29... Rf6 {[%clk 0:01:19.2]} 30. Ne4 {[%clk 0:02:04.7]} 30... Rxg6
{[%clk 0:01:15.9]} 31. fxg6+ {[%clk 0:02:05.6]} 31... Kxg6 {[%clk 0:01:16.6]}
32. Bf7+ {[%clk 0:02:05.5]} 32... Kh7 {[%clk 0:01:13.7]} 33. Raf1 {[%clk
0:02:03.1]} 33... Nc6 {[%clk 0:01:08.9]} 34. g5 {[%clk 0:02:03.3]} 34... Bxh3
{[%clk 0:00:59.7]} 35. g6+ {[%clk 0:02:02.5]} 1-0

[Event "Late-Titled-Tuesday-Blitz-October-10-2023"]
[Site "Chess.com"]
[Date "2023.10.10"]
[Round "2"]
[White "NowInChess"]
[Black "Mackster23"]
[Result "0-1"]
[WhiteElo "2220"]
[BlackElo "2685"]
[TimeControl "180+1"]
[EndTime "14:14:53 PDT"]
[Termination "Mackster23 won by checkmate"]

1. e4 {[%clk 0:03:00.9]} 1... c6 {[%clk 0:02:46]} 2. d4 {[%clk 0:02:58.5]} 2...
d5 {[%clk 0:02:45.6]} 3. exd5 {[%clk 0:02:59.4]} 3... cxd5 {[%clk 0:02:45.4]} 4.
c4 {[%clk 0:03:00.3]} 4... Nf6 {[%clk 0:02:45.2]} 5. Nc3 {[%clk 0:03:00.5]} 5...
Nc6 {[%clk 0:02:45.1]} 6. Bf4 {[%clk 0:02:59.5]} 6... e6 {[%clk 0:02:22.8]} 7.
c5 {[%clk 0:02:59.3]} 7... a6 {[%clk 0:02:12.4]} 8. Nf3 {[%clk 0:02:58.3]} 8...
Be7 {[%clk 0:02:11.6]} 9. Bd3 {[%clk 0:02:58]} 9... O-O {[%clk 0:02:10.3]} 10.
h3 {[%clk 0:02:54.6]} 10... b6 {[%clk 0:02:09.1]} 11. cxb6 {[%clk 0:02:41.4]}
11... Qxb6 {[%clk 0:02:10]} 12. Qd2 {[%clk 0:02:41.1]} 12... Ne4 {[%clk
0:01:57.2]} 13. Bxe4 {[%clk 0:02:22.4]} 13... dxe4 {[%clk 0:01:58.1]} 14. Nxe4
{[%clk 0:02:22.7]} 14... Rd8 {[%clk 0:01:56.2]} 15. Be3 {[%clk 0:02:16.6]} 15...
Qb5 {[%clk 0:01:16.3]} 16. Nc3 {[%clk 0:02:06]} 16... Qf5 {[%clk 0:01:15.9]} 17.
O-O {[%clk 0:02:01]} 17... Bb7 {[%clk 0:01:15.2]} 18. d5 {[%clk 0:01:34]} 18...
Nb4 {[%clk 0:00:47.3]} 19. Nd4 {[%clk 0:01:33.3]} 19... Qg6 {[%clk 0:00:47.5]}
20. dxe6 {[%clk 0:01:22.2]} 20... Qxg2# {[%clk 0:00:46.3]} 0-1

[Event "Late-Titled-Tuesday-Blitz-October-10-2023"]
[Site "Chess.com"]
[Date "2023.10.10"]
[Round "2"]
[White "Mikhal867"]
[Black "GothamChess"]
[Result "0-1"]
[WhiteElo "2465"]
[BlackElo "2747"]
[TimeControl "180+1"]
[EndTime "14:14:54 PDT"]
[Termination "GothamChess won by resignation"]

1. d4 {[%clk 0:02:54.6]} 1... f5 {[%clk 0:02:57.1]} 2. Bg5 {[%clk 0:02:52.3]}
2... Nf6 {[%clk 0:02:56.2]} 3. Nc3 {[%clk 0:02:50.3]} 3... e6 {[%clk 0:02:56.1]}
4. e4 {[%clk 0:02:46.8]} 4... fxe4 {[%clk 0:02:55.9]} 5. Nxe4 {[%clk 0:02:46.5]}
5... Be7 {[%clk 0:02:56.4]} 6. Bxf6 {[%clk 0:02:45.5]} 6... Bxf6 {[%clk
0:02:54.3]} 7. c3 {[%clk 0:02:43.2]} 7... O-O {[%clk 0:02:53.4]} 8. Bd3 {[%clk
0:02:42.6]} 8... Be7 {[%clk 0:02:53.1]} 9. Qh5 {[%clk 0:02:39.3]} 9... g6 {[%clk
0:02:51.1]} 10. Qh6 {[%clk 0:02:38.4]} 10... d5 {[%clk 0:02:49.6]} 11. Nc5
{[%clk 0:02:23.3]} 11... Bg5 {[%clk 0:02:37.3]} 12. Qh3 {[%clk 0:02:21.8]} 12...
e5 {[%clk 0:02:37.6]} 13. Ne6 {[%clk 0:02:21.3]} 13... Qf6 {[%clk 0:02:35.4]}
14. Nxg5 {[%clk 0:02:14.9]} 14... Qxf2+ {[%clk 0:02:32]} 15. Kd1 {[%clk
0:02:14.7]} 15... Bxh3 {[%clk 0:02:32.4]} 16. N1xh3 {[%clk 0:02:14]} 16... Qe3
{[%clk 0:02:26.3]} 17. Kc2 {[%clk 0:01:54.3]} 17... e4 {[%clk 0:02:26.1]} 18.
Bf1 {[%clk 0:01:46.7]} 18... Nc6 {[%clk 0:02:18.2]} 19. Bb5 {[%clk 0:01:38]}
19... Rf2+ {[%clk 0:02:08.7]} 20. Nxf2 {[%clk 0:01:36]} 20... Qxf2+ {[%clk
0:02:09.6]} 21. Kb3 {[%clk 0:01:34.3]} 21... Nxd4+ {[%clk 0:02:06.2]} 22. cxd4
{[%clk 0:01:32.3]} 22... Qe3+ {[%clk 0:02:06.4]} 23. Kc2 {[%clk 0:01:26.4]}
23... c6 {[%clk 0:02:00.8]} 24. Bf1 {[%clk 0:01:17.8]} 24... Qxg5 {[%clk
0:01:52.5]} 25. Re1 {[%clk 0:01:17.3]} 25... Rf8 {[%clk 0:01:50.6]} 26. Re2
{[%clk 0:01:12.7]} 26... Qf6 {[%clk 0:01:45.8]} 27. Rd2 {[%clk 0:01:07.5]} 27...
e3 {[%clk 0:01:41.9]} 28. Rd3 {[%clk 0:01:07.5]} 28... Qf2+ {[%clk 0:01:41.9]}
29. Kc3 {[%clk 0:01:05.7]} 29... Qe1+ {[%clk 0:01:38.5]} 30. Kb3 {[%clk
0:01:03.2]} 30... e2 {[%clk 0:01:38]} 31. Bxe2 {[%clk 0:01:01.2]} 31... Qxh1
{[%clk 0:01:37.5]} 0-1

[Event "Late-Titled-Tuesday-Blitz-October-10-2023"]
[Site "Chess.com"]
[Date "2023.10.10"]
[Round "2"]
[White "Krakozia"]
[Black "ellatambien"]
[Result "1-0"]
[WhiteElo "2993"]
[BlackElo "2605"]
[TimeControl "180+1"]
[EndTime "14:14:57 PDT"]
[Termination "Krakozia won by resignation"]

1. e4 {[%clk 0:03:00.9]} 1... e5 {[%clk 0:02:58.1]} 2. Nf3 {[%clk 0:03:00.4]}
2... Nc6 {[%clk 0:02:58]} 3. g3 {[%clk 0:03:00.5]} 3... Bc5 {[%clk 0:02:55.8]}
4. Bg2 {[%clk 0:02:59]} 4... d6 {[%clk 0:02:55.9]} 5. c3 {[%clk 0:02:57.9]} 5...
Nf6 {[%clk 0:02:51.1]} 6. d3 {[%clk 0:02:57.7]} 6... h6 {[%clk 0:02:50.4]} 7.
O-O {[%clk 0:02:56.7]} 7... a5 {[%clk 0:02:50.5]} 8. a4 {[%clk 0:02:55.4]} 8...
O-O {[%clk 0:02:50.2]} 9. Re1 {[%clk 0:02:54.4]} 9... Ba7 {[%clk 0:02:48.4]} 10.
Na3 {[%clk 0:02:53.6]} 10... Ne7 {[%clk 0:02:48.5]} 11. Nc2 {[%clk 0:02:47.1]}
11... Ng6 {[%clk 0:02:48.4]} 12. Be3 {[%clk 0:02:44.3]} 12... c6 {[%clk
0:02:44.7]} 13. Bxa7 {[%clk 0:02:41.2]} 13... Rxa7 {[%clk 0:02:45.6]} 14. d4
{[%clk 0:02:39.9]} 14... Qb6 {[%clk 0:02:43.9]} 15. Ne3 {[%clk 0:02:27.9]} 15...
Qxb2 {[%clk 0:02:33.5]} 16. Nc4 {[%clk 0:02:23.3]} 16... Qxc3 {[%clk 0:02:29.4]}
17. Nxd6 {[%clk 0:02:23.5]} 17... exd4 {[%clk 0:02:24.1]} 18. e5 {[%clk
0:02:15.9]} 18... Nd5 {[%clk 0:02:23.4]} 19. Nxd4 {[%clk 0:02:11.6]} 19... Nb4
{[%clk 0:02:07.4]} 20. Re3 {[%clk 0:01:51.3]} 20... Qc5 {[%clk 0:02:06.8]} 21.
Rc1 {[%clk 0:01:47]} 21... Qb6 {[%clk 0:02:06.7]} 22. Nxc8 {[%clk 0:01:24.7]}
22... Rxc8 {[%clk 0:02:05.6]} 23. e6 {[%clk 0:01:23.8]} 23... fxe6 {[%clk
0:02:00.4]} 24. Qg4 {[%clk 0:01:16.3]} 24... Nf8 {[%clk 0:01:57.5]} 25. Nxe6
{[%clk 0:01:16]} 25... Rc7 {[%clk 0:01:31.5]} 26. Nxf8 {[%clk 0:01:14.8]} 26...
Kxf8 {[%clk 0:01:29.9]} 27. Qf5+ {[%clk 0:01:14.2]} 1-0

[Event "Late-Titled-Tuesday-Blitz-October-10-2023"]
[Site "Chess.com"]
[Date "2023.10.10"]
[Round "2"]
[White "Kostukov_Alex"]
[Black "artin10862"]
[Result "0-1"]
[WhiteElo "2396"]
[BlackElo "2792"]
[TimeControl "180+1"]
[EndTime "14:15:01 PDT"]
[Termination "artin10862 won by resignation"]

1. g3 {[%clk 0:02:57.5]} 1... g6 {[%clk 0:03:00.2]} 2. Bg2 {[%clk 0:02:51.9]}
2... Bg7 {[%clk 0:03:00.6]} 3. c4 {[%clk 0:02:50.2]} 3... d6 {[%clk 0:02:59.6]}
4. Nf3 {[%clk 0:02:50.4]} 4... e5 {[%clk 0:02:57.6]} 5. O-O {[%clk 0:02:51.3]}
5... Nd7 {[%clk 0:02:56.6]} 6. Nc3 {[%clk 0:02:51.1]} 6... Ngf6 {[%clk
0:02:56.9]} 7. d4 {[%clk 0:02:51.3]} 7... O-O {[%clk 0:02:56.8]} 8. h3 {[%clk
0:02:50.7]} 8... Re8 {[%clk 0:02:55.8]} 9. e4 {[%clk 0:02:50.8]} 9... c6 {[%clk
0:02:53.5]} 10. Be3 {[%clk 0:02:49.2]} 10... a6 {[%clk 0:02:52.4]} 11. Re1
{[%clk 0:02:43.8]} 11... b5 {[%clk 0:02:51.9]} 12. cxb5 {[%clk 0:02:42.2]} 12...
cxb5 {[%clk 0:02:51.4]} 13. a3 {[%clk 0:02:42.7]} 13... Bb7 {[%clk 0:02:50]} 14.
Qc2 {[%clk 0:02:28.9]} 14... Rc8 {[%clk 0:02:48.1]} 15. Rad1 {[%clk 0:02:28.5]}
15... Nxe4 {[%clk 0:02:44.2]} 16. Qb3 {[%clk 0:02:03.9]} 16... Nxc3 {[%clk
0:02:42.3]} 17. bxc3 {[%clk 0:02:03.9]} 17... Bxf3 {[%clk 0:02:38.6]} 18. Bxf3
{[%clk 0:02:02.7]} 18... e4 {[%clk 0:02:39.5]} 19. Be2 {[%clk 0:01:55.7]} 19...
Nb6 {[%clk 0:02:39.6]} 20. Rc1 {[%clk 0:01:42.9]} 20... d5 {[%clk 0:02:37.5]}
21. Bf4 {[%clk 0:01:37.1]} 21... Bf8 {[%clk 0:02:36.7]} 22. Ra1 {[%clk
0:01:35.4]} 22... Bd6 {[%clk 0:02:36.1]} 23. Bh6 {[%clk 0:01:26.6]} 23... e3
{[%clk 0:02:32.2]} 24. Bxe3 {[%clk 0:01:15]} 24... Rxe3 {[%clk 0:02:31]} 25.
fxe3 {[%clk 0:01:13.8]} 25... Qg5 {[%clk 0:02:31.5]} 26. Bg4 {[%clk 0:01:04.2]}
26... f5 {[%clk 0:02:31]} 27. Bf3 {[%clk 0:01:04.7]} 27... Qxg3+ {[%clk
0:02:30.8]} 28. Bg2 {[%clk 0:01:05.1]} 28... Nc4 {[%clk 0:02:27.8]} 29. Re2
{[%clk 0:00:49.9]} 29... Re8 {[%clk 0:02:25.5]} 30. Rae1 {[%clk 0:00:47.8]}
30... Qh2+ {[%clk 0:02:24.5]} 31. Kf1 {[%clk 0:00:45]} 31... Kg7 {[%clk
0:02:21.5]} 32. a4 {[%clk 0:00:43.3]} 32... Rxe3 {[%clk 0:02:21]} 33. axb5
{[%clk 0:00:37.5]} 33... Bg3 {[%clk 0:02:14.1]} 34. bxa6 {[%clk 0:00:32.1]}
34... Nd2+ {[%clk 0:02:13.8]} 0-1

[Event "Late-Titled-Tuesday-Blitz-October-10-2023"]
[Site "Chess.com"]
[Date "2023.10.10"]
[Round "2"]
[White "Alex_Sahakyan2006"]
[Black "Qvalda"]
[Result "1-0"]
[WhiteElo "2721"]
[BlackElo "2384"]
[TimeControl "180+1"]
[EndTime "14:15:07 PDT"]
[Termination "Alex_Sahakyan2006 won by resignation"]

1. e4 {[%clk 0:03:00.9]} 1... e6 {[%clk 0:02:58.6]} 2. d4 {[%clk 0:02:59.9]}
2... d5 {[%clk 0:02:58.8]} 3. Bd3 {[%clk 0:03:00.5]} 3... dxe4 {[%clk 0:02:58]}
4. Bxe4 {[%clk 0:03:01.4]} 4... Nf6 {[%clk 0:02:58.5]} 5. Bf3 {[%clk 0:03:01.4]}
5... Bd6 {[%clk 0:02:59.2]} 6. Nc3 {[%clk 0:03:00.1]} 6... Nbd7 {[%clk
0:02:59.7]} 7. Nge2 {[%clk 0:02:58.1]} 7... e5 {[%clk 0:02:57]} 8. O-O {[%clk
0:02:51]} 8... O-O {[%clk 0:02:54.1]} 9. Ng3 {[%clk 0:02:47.2]} 9... exd4 {[%clk
0:02:49.2]} 10. Qxd4 {[%clk 0:02:46.2]} 10... Ne5 {[%clk 0:02:49.2]} 11. Be2
{[%clk 0:02:38.1]} 11... Nc6 {[%clk 0:02:40.6]} 12. Qh4 {[%clk 0:02:35.8]} 12...
Re8 {[%clk 0:02:33.2]} 13. Bg5 {[%clk 0:02:22.6]} 13... Be5 {[%clk 0:02:21.1]}
14. Bd3 {[%clk 0:02:19.7]} 14... h6 {[%clk 0:02:18.7]} 15. Bxh6 {[%clk
0:02:13.7]} 15... gxh6 {[%clk 0:02:17.9]} 16. Qxh6 {[%clk 0:02:14.1]} 16... Qd4
{[%clk 0:01:39.1]} 17. Nh5 {[%clk 0:01:51.2]} 17... Qg4 {[%clk 0:00:15.6]} 18.
Nxf6+ {[%clk 0:01:47.9]} 18... Bxf6 {[%clk 0:00:15.4]} 19. Bh7+ {[%clk
0:01:48.4]} 19... Kh8 {[%clk 0:00:11.7]} 20. Bg6+ {[%clk 0:01:48.8]} 20... Kg8
{[%clk 0:00:08.2]} 21. Qh7+ {[%clk 0:01:49.7]} 1-0

[Event "Late-Titled-Tuesday-Blitz-October-10-2023"]
[Site "Chess.com"]
[Date "2023.10.10"]
[Round "2"]
[White "Flaccidmoves"]
[Black "C_K_G"]
[Result "1-0"]
[WhiteElo "2417"]
[BlackElo "1980"]
[TimeControl "180+1"]
[EndTime "14:15:18 PDT"]
[Termination "Flaccidmoves won by resignation"]

1. c4 {[%clk 0:03:00.9]} 1... e5 {[%clk 0:02:58.4]} 2. Nc3 {[%clk 0:03:00.5]}
2... Bc5 {[%clk 0:02:56.5]} 3. e3 {[%clk 0:02:59.6]} 3... Nc6 {[%clk 0:02:54.5]}
4. Nf3 {[%clk 0:02:58.7]} 4... a6 {[%clk 0:02:52.9]} 5. d4 {[%clk 0:02:58.1]}
5... exd4 {[%clk 0:02:52.2]} 6. exd4 {[%clk 0:02:59]} 6... Ba7 {[%clk
0:02:51.1]} 7. Be2 {[%clk 0:02:58.1]} 7... d6 {[%clk 0:02:49.7]} 8. O-O {[%clk
0:02:56.7]} 8... Nge7 {[%clk 0:02:45.3]} 9. h3 {[%clk 0:02:49.2]} 9... O-O
{[%clk 0:02:37.2]} 10. Bf4 {[%clk 0:02:40]} 10... Nf5 {[%clk 0:02:32.9]} 11. d5
{[%clk 0:02:38.4]} 11... Ncd4 {[%clk 0:02:28.5]} 12. Nxd4 {[%clk 0:02:37]} 12...
Nxd4 {[%clk 0:02:26.7]} 13. Bd3 {[%clk 0:02:35.4]} 13... Qf6 {[%clk 0:02:16.1]}
14. Be3 {[%clk 0:02:34.3]} 14... Nf5 {[%clk 0:01:59.3]} 15. Bxa7 {[%clk
0:02:32.6]} 15... Rxa7 {[%clk 0:01:58.2]} 16. Qf3 {[%clk 0:02:12.4]} 16... Ra8
{[%clk 0:01:38.6]} 17. Rfe1 {[%clk 0:02:10.2]} 17... Bd7 {[%clk 0:01:30.5]} 18.
Re4 {[%clk 0:02:04.9]} 18... Qh6 {[%clk 0:01:01.3]} 19. Rae1 {[%clk 0:01:29.8]}
19... Nh4 {[%clk 0:00:46.9]} 20. Qe3 {[%clk 0:01:03]} 1-0